fUST/lending_fUST_20240209
["ID","MTS","AMOUNT","RATE_DAILY","PERIOD"]
[313499494,1707408183489,660.784355,0.0001733,2]
[313499497,1707408218183,1839.215645,0.00017316,2]
[313499498,1707408218213,5000.0,0.00017316,2]
[313499499,1707408218242,9000.0,0.00017316,2]
[313499500,1707408218271,9000.0,0.00017316,2]
[313499501,1707408218299,60.784355,0.00017316,2]
[313499504,1707408300772,2971.6354998,0.0001735,2]
[313499505,1707408330318,567.6824724,0.00017307,2]
[313499506,1707408404979,1757.99241626,0.00018196,3]
[313499511,1707408471491,1757.99241626,0.00018191,3]
[313499591,1707408638205,-214.08706983,0.00017776,2]
[313499592,1707408638214,-763.5650986,0.00017776,2]
[313499593,1707408638223,-161.52708074,0.00017776,2]
[313499594,1707408638233,-1536.08707447,0.00017776,2]
[313499625,1707408642420,-323.84455679,0.00017775,2]
[313499626,1707408642431,-1008.99747363,0.00017776,2]
[313500056,1707408647058,-0.32973185,0.00017776,2]
[313500379,1707408655614,763.5650986,0.00016602,2]
[313500380,1707408658005,703.61174663,0.00017774,3]
[313500381,1707408666683,155.11478494,0.00016602,3]
[313500382,1707408677615,715.11772038,0.00016602,2]
[313500383,1707408697228,581.432267,0.00017301,2]
[313500384,1707408704746,3184.66780188,0.00016776,2]
[313500385,1707408704769,21715.33219812,0.00016776,2]
[313500386,1707408768923,202.73463,0.00017598,2]
[313500388,1707408883578,557.19545546,0.00017749,2]
[313500389,1707408884007,185.0083529,0.00017749,2]
[313500390,1707408888768,155.11478494,0.00017749,2]
[313500391,1707408889404,261.08056277,0.00017749,2]
[313500392,1707408889636,1332.70901005,0.00017749,2]
[313500393,1707408890064,323.84455679,0.00017749,2]
[313500394,1707408892384,161.52708074,0.00017749,2]
[313500395,1707408898075,155.11478494,0.00017749,2]
[313500396,1707408899874,155.11478494,0.00017749,2]
[313500397,1707408900899,155.40765533,0.00017749,2]
[313500398,1707408905969,181.54986875,0.00017749,2]
[313500399,1707408914012,1018.41805308,0.00017749,2]
[313500400,1707408914229,159.31275782,0.00017749,2]
[313500401,1707408916355,2606.4717958,0.00017749,2]
[313500402,1707408916869,261.88794378,0.00017749,2]
[313500403,1707408917029,155.11478494,0.00017749,2]
[313500404,1707408920692,7983.26892551,0.00017749,2]
[313500406,1707408930241,2822.61727091,0.00017749,2]
[313500414,1707409004954,289.9024423,0.00027397,120]
[313500422,1707409170383,2606.4717958,0.00017749,2]
[313500423,1707409173325,155.10391963,0.00017749,2]
[313500424,1707409178063,1018.41805308,0.00017749,2]
[313500425,1707409187107,24900.0,0.00016767,2]
[313500426,1707409189418,20933.53573456,0.00017749,2]
[313500427,1707409192460,2822.61727091,0.00017749,2]
[313500428,1707409194017,185.0083529,0.00017749,2]
[313500429,1707409196603,19922.00560303,0.00017749,2]
[313500430,1707409197706,19138.64568776,0.00017749,2]
[313500431,1707409197734,454.37321419,0.00017749,2]
[313500432,1707409213297,155.10391963,0.00017749,2]
[313500433,1707409218907,161.52708074,0.00017749,2]
[313500434,1707409265435,3649.97392191,0.00017749,2]
[313500435,1707409273932,20933.53573456,0.00017749,2]
[313500436,1707409274527,185.0083529,0.00017749,2]
[313500437,1707409276580,290.716133,0.00017147,2]
[313500438,1707409280312,-1434.09189254,0.0001775,2]
[313500439,1707409280350,-323.84455679,0.0001775,2]
[313500440,1707409280387,-7983.26892551,0.0001775,2]
[313500441,1707409305124,165.33464057,0.00017673,2]
[313500442,1707409306955,-6041.46815575,0.0001775,2]
[313500443,1707409315229,-12082.9363115,0.0001775,2]
[313500444,1707409347335,323.84455679,0.00017749,2]
[313500445,1707409357144,185.0083529,0.00017749,2]
[313500447,1707409405413,10195.09100578,0.00017749,2]
[313500448,1707409410191,14296.05608453,0.00017749,2]
[313500449,1707409410221,13871.99777763,0.00017749,2]
[313500450,1707409421082,1096.9927924,0.00017749,2]
[313500451,1707409436586,684.23510419,0.00017749,2]
[313500452,1707409441070,1096.9927924,0.00017749,2]
[313500454,1707409452617,684.23510419,0.00017749,2]
[313500459,1707409461066,312.36760866,0.00017749,2]
[313500462,1707409474610,684.23510419,0.00017749,2]
[313500468,1707409487547,155.10236756,0.00017749,2]
[313500469,1707409490592,209.40528855,0.00017749,2]
[313500471,1707409494238,6204.43606023,0.00017749,2]
[313500472,1707409494276,18141.54378715,0.00017749,2]
[313500479,1707409505531,230.00771759,0.00017749,2]
[313500498,1707409628450,6628.44849526,0.00017659,2]
[313500499,1707409628479,9385.20295969,0.00017659,2]
[313500515,1707409692243,13353.27507177,0.00017659,2]
[313500516,1707409697507,2261.52196854,0.00016764,2]
[313500517,1707409697532,22638.47803146,0.00016764,2]
[313500518,1707409732976,301.659951,0.00016763,2]
[313500522,1707409762829,155.09305583,0.00015978,2]
[313500523,1707409764053,1652.70088172,0.00016764,2]
[313500524,1707409774211,322.35466168,0.00017749,2]
[313500525,1707409778105,155.09305583,0.00017749,2]
[313500526,1707409780588,980.85999752,0.00017749,2]
[313500527,1707409786022,1652.70088172,0.00016764,2]
[313500528,1707409801092,980.85999752,0.00017749,2]
[313500529,1707409804025,1396.67288973,0.00016764,2]
[313500530,1707409804054,1434.09189254,0.00017749,2]
[313500531,1707409809730,6806.55216034,0.00017749,2]
[313500532,1707409815094,753.04418403,0.00016434,2]
[313500608,1707409832314,-323.84455679,0.0001775,2]
[313500610,1707409832324,-2467.49018674,0.0001775,2]
[313500612,1707409832334,-304.27661932,0.0001775,2]
[313500656,1707409838311,-2960.96039243,0.0001775,2]
[313500661,1707409838344,-556.0128966,0.0001775,2]
[313500663,1707409838355,-1452.64979357,0.0001775,2]
[313500669,1707409838401,-904.86933664,0.0001775,2]
[313500730,1707409839251,252.8044474,0.00016434,2]
[313500758,1707409841412,-614.56868611,0.0001775,2]
[313500913,1707409842853,-14165.84927675,0.0001775,2]
[313500915,1707409842862,-172.05585161,0.00017758,2]
[313500917,1707409842871,-322.12110266,0.00017759,2]
[313500919,1707409842880,-309.93636114,0.00017759,2]
[313500921,1707409842889,-903.95892751,0.00017767,2]
[313500923,1707409842898,-8324.06015666,0.00017773,2]
[313500925,1707409842907,-8146.60812306,0.00017783,2]
[313500927,1707409842916,-213.12976178,0.00017783,2]
[313500928,1707409842925,-3291.70531577,0.00017893,2]
[313500931,1707409842939,-1708.29468423,0.00017893,2]
[313500933,1707409842948,-165.33464057,0.0001801,2]
[313500935,1707409842957,-526.26825809,0.00018261,2]
[313500937,1707409842967,-3082.22741714,0.00018262,2]
[313500966,1707409843364,-258.1953955,0.00018262,2]
[313500968,1707409843374,-54.07401443,0.00018262,2]
[313501025,1707409844038,1240.22302861,0.00016434,2]
[313501294,1707409846402,-174.32454628,0.00018262,2]
[313501296,1707409846411,-165.33464057,0.00018347,2]
[313501298,1707409846421,-788.49393271,0.00018443,2]
[313501738,1707409850963,607.67326012,0.00016434,2]
[313501875,1707409852265,24470.77968922,0.00016434,2]
[313502135,1707409855095,382.07372532,0.000166,2]
[313502887,1707409862824,155.08995217,0.00016599,3]
[313503695,1707409872848,848.498091,0.00016765,2]
[313504088,1707409876822,155.08995217,0.00016599,3]
[313504092,1707409876848,1429.18691785,0.00016764,2]
[313505318,1707409890089,3172.87461135,0.00016,5]
[313505668,1707409894820,155.08995217,0.00016596,3]
[313507947,1707409918824,155.08995217,0.00016596,3]
[313510131,1707409943106,221.34811082,0.00016596,2]
[313515202,1707409997113,979.77178088,0.00016424,2]
[313518826,1707410036289,34587.57343074,0.00016596,2]
[313522140,1707410072880,343.73527458,0.00016596,2]
[313522257,1707410073976,155.88224461,0.00016596,2]
[313524578,1707410098306,10241.53106539,0.00016596,2]
[313524855,1707410101150,155.07753877,0.00016596,2]
[313525239,1707410104845,155.07753877,0.00016165,3]
[313525817,1707410110992,622.36860432,0.00016596,2]
[313526274,1707410115583,10462.83887223,0.00016596,2]
[313526405,1707410117245,156.05603969,0.00016596,2]
[313526733,1707410120860,155.07753877,0.00016161,3]
[313527576,1707410131309,1508.3015624,0.0001696,2]
[313528260,1707410142877,155.07753877,0.00016158,3]
[313528963,1707410151993,159.6566773,0.00017167,2]
[313529835,1707410160870,155.07753877,0.00016157,3]
[313531536,1707410178898,155.07753877,0.00016154,3]
[313532674,1707410198870,155.07753877,0.00016152,3]
[313532675,1707410208706,2344.92246123,0.00017058,2]
[313532676,1707410208735,6262.40372317,0.00017058,2]
[313532677,1707410217866,763.5650986,0.00016151,2]
[313532678,1707410220466,5685.76278345,0.00016158,2]
[313532679,1707410220489,12362.96531166,0.00016158,2]
[313532683,1707410226939,683.126503,0.00016765,2]
[313532687,1707410236314,7279.12279164,0.00016152,2]
[313532712,1707410272176,24900.0,0.00016937,2]
[313532713,1707410327012,162.21176964,0.00017732,2]
[313532714,1707410338889,155.07753877,0.00016047,3]
[313532716,1707410354879,155.07753877,0.00016045,3]
[313532717,1707410372885,155.07753877,0.00016043,3]
[313532719,1707410375598,4257.8834926,0.00016828,2]
[313532720,1707410389158,155.07753877,0.00016039,3]
[313532721,1707410406224,250.0,0.00016823,2]
[313532722,1707410408891,155.07753877,0.00016039,3]
[313532723,1707410424888,155.07753877,0.00016034,3]
[313532725,1707410444890,155.07753877,0.00016032,3]
[313532726,1707410449099,7875.046286,0.00016817,2]
[313532727,1707410455730,193.23657136,0.00017712,3]
[313532728,1707410466898,155.07753877,0.00016031,3]
[313532729,1707410486896,155.07753877,0.00016025,3]
[313532733,1707410506896,155.07753877,0.00016024,3]
[313532736,1707410526907,155.07909034,0.0001602,3]
[313532737,1707410527625,157.49626735,0.00017702,2]
[313532739,1707410546900,155.07909034,0.00016019,3]
[313532743,1707410568906,155.07909034,0.00016016,3]
[313532746,1707410585003,155.07909034,0.00016011,3]
[313532755,1707410604906,155.07909034,0.0001601,3]
[313532756,1707410622903,155.07909034,0.00016006,3]
[313532759,1707410644928,155.07909034,0.00016004,3]
[313532760,1707410660920,155.07909034,0.00016001,3]
[313532762,1707410676925,155.07909034,0.00016001,3]
[313532763,1707410693629,1084.17539946,0.00017679,2]
[313532764,1707410696955,155.07909034,0.00015998,2]
[313532765,1707410718919,155.07753877,0.00015995,2]
[313532767,1707410738944,155.07753877,0.00015995,2]
[313532768,1707410799085,537.0,0.0003,120]
[313532769,1707410804963,341.563251,0.00016763,2]
[313532770,1707410806839,24900.0,0.00016763,2]
[313532771,1707410818230,167.24603626,0.00017658,2]
[313532775,1707410854711,5000.0,0.000201,4]
[313532776,1707410856157,563.21509038,0.00017749,2]
[313532777,1707410856948,1860.08325202,0.00017749,2]
[313532778,1707410859315,1018.41805308,0.00017749,2]
[313532779,1707410860094,352.27111843,0.00017749,2]
[313532780,1707410862438,1961.40823934,0.00017749,2]
[313532781,1707410862543,155.07753877,0.00017749,2]
[313532782,1707410862704,5000.0,0.000201,4]
[313532783,1707410863251,18958.53184425,0.00017749,2]
[313532784,1707410863437,214.08706983,0.00017749,2]
[313532785,1707410864135,155.07753877,0.00017749,2]
[313532786,1707410864312,1346.80942386,0.00017749,2]
[313532787,1707410866951,155.07753877,0.00015975,2]
[313532921,1707411034617,-640.48860722,0.00017724,2]
[313532922,1707411034631,-130.24020169,0.00017725,2]
[313532923,1707411034642,-131.64774209,0.00017725,2]
[313532924,1707411034652,-557.19545546,0.00017725,2]
[313532925,1707411034662,-322.35466168,0.00017725,2]
[313532926,1707411034672,-820.86834729,0.00017726,2]
[313532927,1707411034681,-323.84455679,0.00017726,2]
[313532928,1707411034690,-167.19218389,0.00017726,2]
[313532929,1707411034700,-2467.49018674,0.00017726,2]
[313532930,1707411034709,-37068.7030693,0.00017726,2]
[313532931,1707411034718,-19138.64568776,0.00017726,2]
[313532932,1707411034727,-609.78077647,0.00017727,2]
[313532934,1707411034739,-1434.09189254,0.00017727,2]
[313532936,1707411034749,-161.52708074,0.00017727,2]
[313532938,1707411034758,-9392.97703689,0.00017727,2]
[313532940,1707411034767,-155.07909034,0.00017727,2]
[313532941,1707411034776,-2606.4717958,0.00017727,2]
[313532943,1707411034785,-454.37321419,0.00017727,2]
[313532944,1707411034795,-159.31275782,0.00017727,2]
[313532946,1707411034804,-1297.44316792,0.00017728,2]
[313532948,1707411034813,-330.57744299,0.00017728,2]
[313532949,1707411034822,-2045.10360038,0.00017728,2]
[313532950,1707411034832,-535.50901674,0.00017728,2]
[313532951,1707411034840,-523.68160801,0.00017729,2]
[313532952,1707411034849,-294.57728151,0.00017729,2]
[313532953,1707411034860,-3756.52064681,0.00017729,2]
[313532954,1707411034869,-155.07909034,0.00017729,2]
[313532955,1707411034882,-175.72920133,0.00017729,2]
[313532956,1707411034892,-563.21509038,0.0001773,2]
[313532957,1707411034903,-1745.88499104,0.0001773,2]
[313532958,1707411034912,-352.27111843,0.0001773,2]
[313532959,1707411034921,-155.07909034,0.0001773,2]
[313532960,1707411034931,-1947.3753187,0.0001773,2]
[313532961,1707411034940,-155.07909034,0.0001773,2]
[313532962,1707411034949,-682.12992695,0.0001773,2]
[313532963,1707411034958,-3331.11583039,0.00017731,2]
[313532964,1707411034968,-155.07909034,0.00017731,2]
[313532965,1707411034977,-1018.41805308,0.00017731,2]
[313532966,1707411034988,-1513.50493742,0.00017731,2]
[313532967,1707411034997,-7983.26892551,0.00017731,2]
[313532968,1707411035006,-214.08706983,0.00017731,2]
[313532969,1707411035016,-155.07909034,0.00017731,2]
[313532970,1707411035031,-2822.61727091,0.00017731,2]
[313532971,1707411035041,-1757.99241626,0.00017731,3]
[313532972,1707411035050,-181.54986875,0.00017731,2]
[313532973,1707411035060,-1961.40823934,0.00017731,2]
[313532974,1707411035070,-261.08056277,0.00017732,2]
[313532975,1707411035080,-19922.00560303,0.00017732,2]
[313532976,1707411035089,-20933.53573456,0.00017732,2]
[313532977,1707411035099,-155.40765533,0.00017732,2]
[313532978,1707411035109,-500.0,0.00017732,2]
[313532979,1707411035119,-167.52109951,0.00017732,2]
[313532980,1707411035133,-18958.53184425,0.00017732,2]
[313532981,1707411035144,-199.77831197,0.00017733,2]
[313532982,1707411035154,-155.07909034,0.00017733,2]
[313532983,1707411035163,-590.15719574,0.00017734,2]
[313532984,1707411035173,-284.27448433,0.00017746,2]
[313532985,1707411035183,-440.07195723,0.00017749,2]
[313532986,1707411035193,-309.95966768,0.00017749,2]
[313532987,1707411035203,-267.79308,0.0001776,2]
[313532988,1707411035213,-549.2455,0.00017778,2]
[313532990,1707411035223,-549.2455,0.00017778,2]
[313532991,1707411035233,-549.2455,0.00017779,2]
[313532992,1707411035242,-549.2455,0.00017779,2]
[313532993,1707411035253,-295.989705,0.00017786,2]
[313532994,1707411035263,-295.989705,0.00017786,2]
[313532995,1707411035272,-295.989705,0.00017786,2]
[313532996,1707411035282,-295.989705,0.00017786,2]
[313532997,1707411035292,-295.989705,0.00017788,2]
[313532998,1707411035302,-295.989705,0.00017788,2]
[313532999,1707411035311,-549.2455,0.00017794,2]
[313533000,1707411035320,-549.2455,0.00017794,2]
[313533001,1707411035330,-151.0,0.00017797,2]
[313533002,1707411035339,-151.0,0.00017797,2]
[313533003,1707411035349,-814.810494,0.00017807,2]
[313533004,1707411035358,-814.810494,0.00017807,2]
[313533005,1707411035368,-151.0,0.00017807,2]
[313533006,1707411035381,-151.0,0.00017816,2]
[313533007,1707411035391,-222.085552,0.00017816,2]
[313533008,1707411035400,-2110.10399171,0.0001783,2]
[313533009,1707411035410,-295.989705,0.0001783,2]
[313533010,1707411035420,-295.989705,0.0001783,2]
[313533011,1707411035429,-151.0,0.00017839,2]
[313533012,1707411035439,-155.34044948,0.00017946,2]
[313533013,1707411035448,-174.71029562,0.00017946,2]
[313533014,1707411035457,-155.66127829,0.00017946,2]
[313533015,1707411035466,-156.20765824,0.00017946,2]
[313533016,1707411035475,-155.17326081,0.00017947,2]
[313533017,1707411035485,-2587.14665318,0.00017958,2]
[313533018,1707411035494,-276.187666,0.00017958,2]
[313533019,1707411035503,-814.810494,0.00017958,2]
[313533020,1707411035513,-814.810494,0.00017958,2]
[313533021,1707411035522,-155.94178321,0.00017962,2]
[313533022,1707411035531,-151.06407084,0.00017962,2]
[313533023,1707411035544,-4.49008897,0.00017962,2]
[313533024,1707411035553,-309.99381017,0.00017962,2]
[313533025,1707411035563,-5854.11087692,0.00018,2]
[313533026,1707411035572,-151.0,0.00018,2]
[313533027,1707411035582,-155.50464675,0.0001814,2]
[313533028,1707411035592,-295.68843197,0.00018145,2]
[313533029,1707411035601,-621.02027145,0.00018145,2]
[313533030,1707411035612,-906.00048725,0.00018145,2]
[313533031,1707411035622,-310.07131892,0.00018145,2]
[313533032,1707411035633,-1693.2788326,0.00018145,2]
[313533033,1707411035642,-549.2455,0.00018145,2]
[313533034,1707411035651,-549.2455,0.00018145,2]
[313533035,1707411035661,-295.989705,0.00018193,2]
[313533036,1707411035671,-295.989705,0.00018193,2]
[313533037,1707411035681,-151.0,0.00018224,2]
[313533038,1707411035691,-155.59730129,0.00018247,2]
[313533039,1707411035700,-1000.0,0.00018248,2]
[313533040,1707411035709,-200.0,0.00018259,2]
[313533041,1707411035719,-200.0,0.00018259,2]
[313533042,1707411035729,-200.0,0.00018259,2]
[313533043,1707411035740,-200.0,0.00018259,2]
[313533044,1707411035750,-200.0,0.00018259,2]
[313533045,1707411035759,-200.0,0.00018259,2]
[313533046,1707411035770,-200.0,0.00018259,2]
[313533047,1707411035780,-200.0,0.00018259,2]
[313533048,1707411035791,-200.0,0.00018259,2]
[313533049,1707411035801,-200.0,0.00018259,2]
[313533050,1707411035811,-200.0,0.00018259,2]
[313533051,1707411035821,-200.0,0.00018259,2]
[313533052,1707411035831,-200.0,0.00018259,2]
[313533053,1707411035841,-200.0,0.00018259,2]
[313533054,1707411035853,-200.0,0.00018259,2]
[313533055,1707411035863,-200.0,0.00018259,2]
[313533056,1707411035875,-200.0,0.00018259,2]
[313533057,1707411035884,-200.0,0.00018259,2]
[313533058,1707411035895,-200.0,0.00018259,2]
[313533059,1707411035905,-200.0,0.00018259,2]
[313533060,1707411035915,-200.0,0.00018259,2]
[313533061,1707411035924,-200.0,0.00018259,2]
[313533062,1707411035934,-200.0,0.00018259,2]
[313533063,1707411035944,-200.0,0.00018259,2]
[313533064,1707411035953,-200.0,0.00018259,2]
[313533065,1707411035964,-200.0,0.00018259,2]
[313533066,1707411035975,-200.0,0.00018259,2]
[313533067,1707411035985,-200.0,0.00018259,2]
[313533068,1707411035994,-200.0,0.00018259,2]
[313533069,1707411036004,-200.0,0.00018259,2]
[313533070,1707411036014,-200.0,0.00018259,2]
[313533071,1707411036024,-200.0,0.00018259,2]
[313533072,1707411036033,-200.0,0.00018259,2]
[313533073,1707411036043,-200.0,0.00018259,2]
[313533074,1707411036052,-200.0,0.00018259,2]
[313533075,1707411036062,-200.0,0.00018259,2]
[313533076,1707411036072,-200.0,0.00018259,2]
[313533077,1707411036082,-200.0,0.00018259,2]
[313533078,1707411036092,-200.0,0.00018259,2]
[313533079,1707411036102,-207.91768,0.00018259,2]
[313533080,1707411036112,-814.810494,0.00018259,2]
[313533081,1707411036121,-814.810494,0.00018259,2]
[313533082,1707411036133,-549.2455,0.00018264,2]
[313533083,1707411036143,-549.2455,0.00018264,2]
[313533084,1707411036153,-151.0,0.00018281,2]
[313533085,1707411036163,-1000.0,0.0001835,2]
[313533086,1707411036173,-1000.0,0.00018362,2]
[313533087,1707411036183,-1014.35307829,0.00018368,2]
[313533088,1707411036193,-295.989705,0.00018384,2]
[313533089,1707411036203,-295.989705,0.00018384,2]
[313533090,1707411036212,-151.0,0.00018385,2]
[313533091,1707411036222,-59520.35991799,0.00018442,2]
[313533092,1707411036232,-151.0,0.00018442,2]
[313533093,1707411036242,-814.810494,0.00018442,2]
[313533094,1707411036251,-814.810494,0.00018442,2]
[313533095,1707411036261,-151.0,0.00018442,2]
[313533096,1707411036270,-295.989705,0.00018442,2]
[313533097,1707411036280,-295.989705,0.00018442,2]
[313533098,1707411036289,-549.2455,0.00018442,2]
[313533099,1707411036299,-549.2455,0.00018442,2]
[313533100,1707411036309,-156.38818445,0.00018443,2]
[313533101,1707411036319,-279.74496938,0.00018445,2]
[313533102,1707411036329,-155.86662401,0.00018445,2]
[313533103,1707411036339,-459.3621972,0.00018445,2]
[313533104,1707411036348,-225.98437194,0.00018445,2]
[313533105,1707411036357,-2778.15443682,0.00018445,2]
[313533106,1707411036368,-284.2184862,0.00018447,2]
[313533107,1707411036380,-4495.12556647,0.00018447,2]
[313533108,1707411036389,-155.46139629,0.00018447,2]
[313533109,1707411036399,-180.32360661,0.00018447,2]
[313533110,1707411036409,-254.6541862,0.00018447,2]
[313533111,1707411036419,-179.16084006,0.00018447,2]
[313533112,1707411036429,-1501.03210374,0.000189,2]
[313533113,1707411036439,-20000.0,0.00019,2]
[313533114,1707411036449,-151.0,0.00019,2]
[313533115,1707411036459,-814.810494,0.00019,2]
[313533116,1707411036553,-814.810494,0.00019,2]
[313533117,1707411036562,-201.392123,0.00019,2]
[313533118,1707411036572,-295.989705,0.00019,2]
[313533119,1707411036582,-295.989705,0.00019,2]
[313533120,1707411036592,-549.2455,0.00019,2]
[313533121,1707411036602,-549.2455,0.00019,2]
[313533122,1707411036611,-168.242468,0.00019178,2]
[313533123,1707411036621,-167.542562,0.00019178,2]
[313533124,1707411036634,-1000.0,0.00019228,2]
[313533125,1707411036644,-1000.0,0.00019244,2]
[313533126,1707411036653,-1000.0,0.00019246,2]
[313533127,1707411036662,-1000.0,0.00019256,2]
[313533128,1707411036671,-1000.0,0.00019262,2]
[313533129,1707411036681,-1000.0,0.0001927,2]
[313533130,1707411036691,-1000.0,0.00019293,2]
[313533131,1707411036701,-1000.0,0.000193,2]
[313533132,1707411036710,-300.0,0.0001933,2]
[313533133,1707411036720,-1000.0,0.00019339,2]
[313533134,1707411036729,-1000.0,0.00019352,2]
[313533135,1707411036740,-1000.0,0.00019354,2]
[313533136,1707411036749,-1000.0,0.00019358,2]
[313533137,1707411036758,-1000.0,0.0001936,2]
[313533138,1707411036768,-1000.0,0.00019367,2]
[313533139,1707411036778,-1000.0,0.00019379,2]
[313533140,1707411036787,-152.24361134,0.00019426,2]
[313533141,1707411036797,-1000.0,0.00019446,2]
[313533142,1707411036808,-1000.0,0.0001946,2]
[313533143,1707411036818,-1000.0,0.00019466,2]
[313533144,1707411036828,-1136.5015486,0.00019497,2]
[313533145,1707411036839,-1114.80462034,0.000195,2]
[313533146,1707411036849,-200.0,0.00019516,2]
[313533147,1707411036862,-741.55288489,0.0002,2]
[313533148,1707411036872,-324.06509508,0.0002,2]
[313533149,1707411036886,-1294.46168245,0.0002,2]
[313533150,1707411036896,-1200.48914762,0.0002,2]
[313533151,1707411036906,-241.69758449,0.0002,2]
[313533152,1707411036916,-179.97810264,0.0002,2]
[313533153,1707411036926,-787.13039263,0.0002,2]
[313533154,1707411036938,-309.39587263,0.0002,2]
[313533155,1707411036948,-202.19269165,0.0002,2]
[313533156,1707411036959,-158.34385126,0.0002,2]
[313533157,1707411036970,-156.1019835,0.0002,2]
[313533158,1707411036981,-157.13828246,0.0002,2]
[313533159,1707411036992,-1084.17539946,0.00020234,2]
[313533160,1707411037002,-500.0,0.00020822,2]
[313533161,1707411037011,-500.0,0.00020822,2]
[313533162,1707411037021,-500.0,0.00020822,2]
[313533163,1707411037031,-500.0,0.00020822,2]
[313533164,1707411037040,-374.07058043,0.00020822,2]
[313533165,1707411037050,-219.22592694,0.00020822,2]
[313533166,1707411037060,-500.0,0.00020822,2]
[313533167,1707411037070,-267.81469663,0.00020822,2]
[313533168,1707411037079,-500.0,0.00020822,2]
[313533169,1707411037089,-500.0,0.00020822,2]
[313533170,1707411037098,-175.53053005,0.00020822,2]
[313533171,1707411037107,-500.0,0.00020822,2]
[313533172,1707411037116,-500.0,0.00020822,2]
[313533173,1707411037128,-152.07790445,0.00020822,2]
[313533174,1707411037138,-500.0,0.00020822,2]
[313533175,1707411037148,-500.0,0.00020822,2]
[313533176,1707411037157,-500.0,0.00020822,2]
[313533177,1707411037168,-500.0,0.00020822,2]
[313533178,1707411037177,-500.0,0.00020822,2]
[313533179,1707411037187,-500.0,0.00020822,2]
[313533180,1707411037196,-500.0,0.00020822,2]
[313533181,1707411037206,-500.0,0.00020822,2]
[313533182,1707411037216,-500.0,0.00020822,2]
[313533183,1707411037225,-500.0,0.00020822,2]
[313533184,1707411037235,-500.0,0.00020822,2]
[313533185,1707411037245,-500.0,0.00020822,2]
[313533186,1707411037256,-500.0,0.00020822,2]
[313533187,1707411037266,-500.0,0.00020822,2]
[313533188,1707411037276,-243.84017294,0.00020822,2]
[313533189,1707411037286,-500.0,0.00020822,2]
[313533190,1707411037297,-500.0,0.00020822,2]
[313533191,1707411037307,-500.0,0.00020822,2]
[313533192,1707411037317,-500.0,0.00020822,2]
[313533193,1707411037327,-500.0,0.00020822,2]
[313533194,1707411037337,-500.0,0.00020822,2]
[313533195,1707411037347,-500.0,0.00020822,2]
[313533196,1707411037357,-500.0,0.00020822,2]
[313533197,1707411037366,-500.0,0.00020822,2]
[313533198,1707411037378,-500.0,0.00020822,2]
[313533199,1707411037387,-500.0,0.00020822,2]
[313533200,1707411037397,-500.0,0.00020822,2]
[313533201,1707411037406,-500.0,0.00020822,2]
[313533202,1707411037415,-500.0,0.00020822,2]
[313533203,1707411037424,-500.0,0.00020822,2]
[313533204,1707411037433,-500.0,0.00020822,2]
[313533205,1707411037443,-500.0,0.00020822,2]
[313533206,1707411037452,-350.0,0.00020822,2]
[313533207,1707411037462,-500.0,0.00020822,2]
[313533208,1707411037471,-500.0,0.00020822,2]
[313533209,1707411037481,-500.0,0.00020822,2]
[313533210,1707411037490,-500.0,0.00020822,2]
[313533211,1707411037499,-500.0,0.00020822,2]
[313533212,1707411037508,-500.0,0.00020822,2]
[313533213,1707411037517,-500.0,0.00020822,2]
[313533214,1707411037526,-500.0,0.00020822,2]
[313533215,1707411037535,-415.90984036,0.00020822,2]
[313533216,1707411037544,-500.0,0.00020822,2]
[313533217,1707411037553,-500.0,0.00020822,2]
[313533218,1707411037562,-500.0,0.00020822,2]
[313533219,1707411037571,-500.0,0.00020822,2]